fUSD/lending_fUSD_20250423
["ID","MTS","AMOUNT","RATE_DAILY","PERIOD"]
[358685134,1745367046942,-423.91,0.0004,10]
[358685135,1745367046951,-6399.999999,0.0004,3]
[358685136,1745367046961,-1516.66,0.00040025,2]
[358685137,1745367046971,-814.30504774,0.00040271,5]
[358685138,1745367046981,-182.04438915,0.00040371,5]
[358685139,1745367046991,-495.21,0.00040888,7]
[358685140,1745367047001,-166.22,0.000409,14]
[358685141,1745367047011,-750.0,0.00041,2]
[358685142,1745367047021,-22146.0,0.00041,3]
[358685143,1745367047031,-167.0,0.00041,14]
[358685144,1745367047041,-800.0,0.00041096,7]
[358685145,1745367047051,-500.0,0.00041096,10]
[358685146,1745367047062,-1311.08,0.000411,14]
[358685147,1745367047071,-1000.0,0.00041644,10]
[358685148,1745367047082,-2000.0,0.00041678,7]
[358685149,1745367047092,-876.0,0.00041733,2]
[358685150,1745367047102,-784.001,0.00041768,2]
[358685151,1745367047112,-290.93660287,0.00042123,4]
[358685152,1745367047122,-310.83502127,0.00042192,10]
[358685153,1745367047132,-1516.66,0.00042289,2]
[358685154,1745367047142,-1311.08,0.00043,14]
[358685155,1745367047151,-800.0,0.00043,2]
[358685156,1745367047161,-1836.0,0.000432,7]
[358685157,1745367047171,-217.38424326,0.00043836,2]
[358685158,1745367047181,-1000.0,0.00043836,14]
[358685159,1745367047191,-645.0,0.00043836,14]
[358685160,1745367047201,-199260.0,0.00044,2]
[358685161,1745367047211,-427.0,0.00044251,7]
[358685162,1745367047222,-150.0,0.00044436,2]
[358685163,1745367047232,-150.0,0.0004444,2]
[358685164,1745367047242,-150.0,0.00044486,2]
[358685165,1745367047252,-1147.0,0.000445,7]
[358685166,1745367047262,-150.0,0.00044529,2]
[358685167,1745367047271,-1516.66,0.00044553,2]
[358685168,1745367047281,-150.0,0.00044592,2]
[358685169,1745367047292,-150.0,0.00044671,2]
[358685170,1745367047303,-150.0,0.00044697,2]
[358685171,1745367047312,-876.0,0.00044733,2]
[358685172,1745367047322,-2973.5893462,0.00044786,4]
[358685173,1745367047334,-350.0,0.0004485,2]
[358685174,1745367047346,-150.0,0.00044855,2]
[358685175,1745367047358,-150.0,0.00044969,2]
[358685176,1745367047370,-1311.08,0.00045,14]
[358685177,1745367047380,-850.0,0.00045,2]
[358685178,1745367047390,-766897.6389037,0.00045,2]
[358685179,1745367047400,-150.0,0.00045067,2]
[358685180,1745367047410,-200.0,0.00045205,7]
[358685181,1745367047421,-150.0,0.00045223,2]
[358685182,1745367047430,-150.0,0.00045226,2]
[358685183,1745367047442,-150.0,0.00045284,2]
[358685184,1745367047452,-500.0,0.00045299,30]
[358685185,1745367047462,-500.0,0.000453,90]
[358685186,1745367047472,-500.0,0.000453,120]
[358685187,1745367047482,-500.0,0.000453,120]
[358685188,1745367047492,-500.0,0.000453,120]
[358685189,1745367047501,-500.0,0.000453,120]
[358685190,1745367047511,-500.0,0.000453,120]
[358685191,1745367047722,-500.0,0.000453,120]
[358685192,1745367047733,-500.0,0.000453,120]
[358685193,1745367047743,-500.0,0.000453,120]
[358685194,1745367047753,-500.0,0.000453,120]
[358685195,1745367047763,-500.0,0.000453,120]
[358685196,1745367047773,-500.0,0.000453,120]
[358685197,1745367047784,-500.0,0.000453,120]
[358685198,1745367047795,-500.0,0.000453,120]
[358685199,1745367047805,-500.0,0.000453,120]
[358685200,1745367047815,-500.0,0.000453,120]
[358685201,1745367047825,-500.0,0.000453,120]
[358685202,1745367047834,-500.0,0.000453,120]
[358685203,1745367047844,-500.0,0.000453,120]
[358685204,1745367047854,-500.0,0.000453,120]
[358685205,1745367047863,-500.0,0.000453,120]
[358685206,1745367047873,-500.0,0.000453,120]
[358685207,1745367047882,-500.0,0.000453,120]
[358685208,1745367047892,-500.0,0.000453,120]
[358685209,1745367047902,-500.0,0.000453,120]
[358685210,1745367047912,-500.0,0.000453,120]
[358685211,1745367047922,-500.0,0.000453,120]
[358685212,1745367047932,-500.0,0.000453,120]
[358685213,1745367047942,-500.0,0.000453,120]
[358685214,1745367047952,-500.0,0.000453,120]
[358685215,1745367047962,-500.0,0.000453,120]
[358685216,1745367047972,-500.0,0.000453,120]
[358685217,1745367047984,-500.0,0.000453,120]
[358685218,1745367047996,-500.0,0.000453,120]
[358685219,1745367048006,-500.0,0.000453,120]
[358685220,1745367048016,-500.0,0.000453,120]
[358685221,1745367048026,-500.0,0.000453,120]
[358685222,1745367048036,-500.0,0.000453,120]
[358685223,1745367048046,-500.0,0.000453,120]
[358685224,1745367048056,-500.0,0.000453,120]
[358685225,1745367048066,-500.0,0.000453,120]
[358685226,1745367048075,-500.0,0.000453,120]
[358685227,1745367048086,-500.0,0.000453,120]
[358685228,1745367048096,-500.0,0.000453,120]
[358685229,1745367048105,-500.0,0.000453,120]
[358685230,1745367048115,-500.0,0.000453,120]
[358685231,1745367048125,-500.0,0.000453,120]
[358685232,1745367048135,-500.0,0.000453,120]
[358685233,1745367048144,-500.0,0.000453,120]
[358685234,1745367048154,-500.0,0.000453,120]
[358685235,1745367048164,-500.0,0.000453,120]
[358685236,1745367048173,-500.0,0.000453,120]
[358685237,1745367048183,-500.0,0.000453,120]
[358685238,1745367048193,-500.0,0.000453,120]
[358685239,1745367048203,-500.0,0.000453,120]
[358685240,1745367048212,-605.0,0.000453,120]
[358685241,1745367048222,-500.0,0.000453,120]
[358685242,1745367048232,-776.0,0.000453,120]
[358685243,1745367048241,-500.0,0.000453,120]
[358685244,1745367048251,-500.0,0.000453,120]
[358685245,1745367048260,-500.0,0.000453,120]
[358685246,1745367048269,-500.0,0.000453,120]
[358685247,1745367048280,-500.0,0.000453,120]
[358685248,1745367048289,-500.0,0.000453,120]
[358685249,1745367048299,-500.0,0.000453,120]
[358685250,1745367048309,-500.0,0.000453,120]
[358685251,1745367048319,-500.0,0.000453,120]
[358685252,1745367048328,-500.0,0.000453,120]
[358685253,1745367048338,-500.0,0.000453,120]
[358685254,1745367048347,-500.0,0.000453,120]
[358685255,1745367048360,-500.0,0.000453,120]
[358685256,1745367048370,-500.0,0.000453,120]
[358685257,1745367048380,-500.0,0.000453,120]
[358685258,1745367048390,-500.0,0.000453,120]
[358685259,1745367048400,-500.0,0.000453,120]
[358685260,1745367048411,-500.0,0.000453,120]
[358685261,1745367048421,-500.0,0.000453,120]
[358685262,1745367048433,-500.0,0.000453,120]
[358685263,1745367048443,-500.0,0.000453,120]
[358685264,1745367048453,-500.0,0.000453,120]
[358685265,1745367048463,-500.0,0.000453,120]
[358685266,1745367048473,-500.0,0.000453,120]
[358685267,1745367048484,-500.0,0.000453,120]
[358685268,1745367048495,-500.0,0.000453,120]
[358685269,1745367048505,-500.0,0.000453,120]
[358685270,1745367048516,-500.0,0.000453,120]
[358685271,1745367048526,-500.0,0.000453,120]
[358685272,1745367048536,-500.0,0.000453,120]
[358685273,1745367048547,-500.0,0.000453,120]
[358685274,1745367048558,-500.0,0.000453,120]
[358685275,1745367048568,-500.0,0.000453,120]
[358685276,1745367048577,-500.0,0.000453,120]
[358685277,1745367048588,-943.0,0.000453,120]
[358685278,1745367048599,-500.0,0.000453,120]
[358685279,1745367048610,-500.0,0.000453,120]
[358685280,1745367048622,-500.0,0.000453,120]
[358685281,1745367048632,-500.0,0.000453,120]
[358685282,1745367048644,-500.0,0.000453,120]
[358685283,1745367048654,-500.0,0.000453,120]
[358685284,1745367048664,-500.0,0.000453,120]
[358685285,1745367048674,-500.0,0.000453,120]
[358685286,1745367048684,-500.0,0.000453,120]
[358685287,1745367048695,-500.0,0.000453,120]
[358685288,1745367048705,-500.0,0.000453,120]
[358685289,1745367048715,-500.0,0.000453,120]
[358685290,1745367048725,-500.0,0.000453,120]
[358685291,1745367048735,-500.0,0.000453,120]
[358685292,1745367048744,-500.0,0.000453,120]
[358685293,1745367048755,-500.0,0.000453,120]
[358685294,1745367048764,-500.0,0.000453,120]
[358685295,1745367048774,-500.0,0.000453,120]
[358685296,1745367048784,-500.0,0.000453,120]
[358685297,1745367048794,-500.0,0.000453,120]
[358685298,1745367048809,-500.0,0.000453,120]
[358685299,1745367048821,-500.0,0.000453,120]
[358685300,1745367048832,-500.0,0.000453,120]
[358685301,1745367048842,-500.0,0.000453,120]
[358685302,1745367048852,-500.0,0.000453,120]
[358685303,1745367048861,-500.0,0.000453,120]
[358685304,1745367048871,-500.0,0.000453,120]
[358685305,1745367048881,-500.0,0.000453,120]
[358685306,1745367048890,-500.0,0.000453,120]
[358685307,1745367048900,-500.0,0.000453,120]
[358685308,1745367048909,-500.0,0.000453,120]
[358685309,1745367048919,-500.0,0.000453,120]
[358685310,1745367048928,-500.0,0.000453,120]
[358685311,1745367048937,-500.0,0.000453,120]
[358685312,1745367048948,-500.0,0.000453,120]
[358685313,1745367048958,-500.0,0.000453,120]
[358685314,1745367048968,-500.0,0.000453,120]
[358685315,1745367048978,-500.0,0.000453,120]
[358685316,1745367048988,-500.0,0.000453,120]
[358685317,1745367048998,-500.0,0.000453,120]
[358685318,1745367049008,-500.0,0.000453,120]
[358685319,1745367049018,-500.0,0.000453,120]
[358685320,1745367049028,-500.0,0.000453,120]
[358685321,1745367049038,-500.0,0.000453,120]
[358685322,1745367049049,-500.0,0.000453,120]
[358685323,1745367049058,-500.0,0.000453,120]
[358685324,1745367049068,-500.0,0.000453,120]
[358685325,1745367049079,-500.0,0.000453,120]
[358685326,1745367049088,-500.0,0.000453,120]
[358685327,1745367049098,-500.0,0.000453,120]
[358685328,1745367049108,-500.0,0.000453,120]
[358685329,1745367049118,-500.0,0.000453,120]
[358685330,1745367049128,-500.0,0.000453,120]
[358685331,1745367049137,-500.0,0.000453,120]
[358685332,1745367049148,-500.0,0.000453,120]
[358685333,1745367049159,-500.0,0.000453,120]
[358685334,1745367049168,-500.0,0.000453,120]
[358685335,1745367049179,-500.0,0.000453,120]
[358685336,1745367049189,-500.0,0.000453,120]
[358685337,1745367049199,-500.0,0.000453,120]
[358685338,1745367049209,-500.0,0.000453,120]
[358685339,1745367049220,-500.0,0.000453,120]
[358685340,1745367049230,-500.0,0.000453,120]
[358685341,1745367049240,-500.0,0.000453,120]
[358685342,1745367049250,-500.0,0.000453,120]
[358685343,1745367049261,-500.0,0.000453,120]
[358685344,1745367049271,-500.0,0.000453,120]
[358685345,1745367049281,-500.0,0.000453,120]
[358685346,1745367049291,-500.0,0.000453,120]
[358685347,1745367049302,-500.0,0.000453,120]
[358685348,1745367049312,-500.0,0.000453,120]
[358685349,1745367049321,-500.0,0.000453,120]
[358685350,1745367049332,-500.0,0.000453,120]
[358685351,1745367049343,-500.0,0.000453,120]
[358685352,1745367049354,-500.0,0.000453,120]
[358685353,1745367049367,-500.0,0.000453,120]
[358685354,1745367049378,-500.0,0.000453,120]
[358685355,1745367049388,-500.0,0.000453,120]
[358685356,1745367049399,-500.0,0.000453,120]
[358685357,1745367049412,-500.0,0.000453,120]
[358685358,1745367049422,-500.0,0.000453,120]
[358685359,1745367049432,-152.0,0.00045398,3]
[358685360,1745367049444,-150.0,0.00045445,2]
[358685361,1745367049454,-150.0,0.00045473,2]
[358685362,1745367049465,-150.0,0.00045577,2]
[358685363,1745367049475,-150.0,0.0004558,2]
[358685364,1745367049485,-150.0,0.0004558,2]
[358685365,1745367049496,-150.0,0.00045589,10]
[358685366,1745367049506,-200.0,0.00045657,7]
[358685367,1745367049517,-215.0,0.0004573,2]
[358685368,1745367049528,-150.0,0.0004575,2]
[358685369,1745367049539,-2005.83614294,0.00045756,17]
[358685370,1745367049549,-150.0,0.00045816,2]
[358685371,1745367049559,-150.0,0.00045869,2]
[358685372,1745367049570,-150.0,0.00045871,2]
[358685373,1745367049580,-150.0,0.00045888,2]
[358685374,1745367049591,-150.0,0.00045902,2]
[358685375,1745367049601,-150.0,0.00045915,2]
[358685376,1745367049611,-150.0,0.00045925,2]
[358685377,1745367049622,-150.0,0.00045931,2]
[358685378,1745367049634,-150.0,0.0004594,2]
[358685379,1745367049645,-150.0,0.00045944,2]
[358685380,1745367049655,-150.0,0.00045951,2]
[358685381,1745367049667,-150.0,0.00045957,2]
[358685382,1745367049678,-150.0,0.0004597,2]
[358685383,1745367049689,-150.0,0.00045988,2]
[358685384,1745367049700,-150.0,0.00045993,2]
[358685385,1745367049711,-16104.68,0.00045999,2]
[358685386,1745367049721,-500.0,0.00045999,30]
[358685387,1745367049732,-2885.0,0.00046,120]
[358685388,1745367049743,-451.89,0.00046,120]
[358685389,1745367049754,-111090.2682134,0.00046,30]
[358685390,1745367049765,-150.0,0.00046038,2]
[358685391,1745367049775,-150.0,0.00046045,2]
[358685392,1745367049786,-150.0,0.00046053,2]
[358685393,1745367049797,-150.0,0.00046067,2]
[358685394,1745367049808,-150.0,0.00046083,2]
[358685395,1745367049818,-150.0,0.00046083,2]
[358685396,1745367049828,-150.0,0.00046099,2]
[358685397,1745367049839,-166.22,0.000461,60]
[358685398,1745367049849,-150.0,0.00046108,2]
[358685399,1745367049859,-150.0,0.00046118,2]
[358685400,1745367049872,-150.0,0.00046144,2]
[358685401,1745367049882,-150.0,0.00046156,2]
[358685402,1745367049892,-150.0,0.00046173,2]
[358685403,1745367049903,-150.0,0.00046177,2]
[358685404,1745367049914,-150.0,0.00046179,2]
[358685405,1745367049923,-150.0,0.00046194,2]
[358685406,1745367049935,-1311.08,0.000462,14]
[358685407,1745367049945,-150.0,0.00046227,2]
[358685408,1745367049954,-150.0,0.00046245,2]
[358685409,1745367049964,-150.0,0.00046247,2]
[358685410,1745367049975,-150.0,0.0004625,2]
[358685411,1745367049987,-150.0,0.00046273,2]
[358685412,1745367049997,-150.0,0.00046296,2]
[358685413,1745367050007,-150.0,0.00046299,2]
[358685414,1745367050019,-2975.8337617,0.000463,3]
[358685415,1745367050029,-320.08,0.00046301,2]
[358685416,1745367050040,-150.0,0.00046327,2]
[358685417,1745367050053,-150.0,0.00046338,2]
[358685418,1745367050065,-150.0,0.00046343,2]
[358685419,1745367050079,-150.0,0.00046373,2]
[358685420,1745367050092,-150.0,0.00046376,2]
[358685421,1745367050103,-150.0,0.00046396,2]
[358685422,1745367050113,-150.0,0.00046401,2]
[358685423,1745367050125,-150.0,0.00046407,2]
[358685424,1745367050135,-150.0,0.00046415,2]
[358685425,1745367050145,-205.90308554,0.00046436,2]
[358685426,1745367050156,-272.73586381,0.00046438,120]
[358685427,1745367050166,-1333.0,0.00046466,120]
[358685428,1745367050179,-150.0,0.00046473,2]
[358685429,1745367050189,-150.0,0.00046483,2]
[358685430,1745367050202,-150.0,0.00046486,2]
[358685431,1745367050211,-150.0,0.00046489,2]
[358685432,1745367050222,-150.0,0.00046499,2]
[358685433,1745367050309,-332.689051,0.000465,30]
[358685434,1745367050320,-150.0,0.00046512,2]
[358685435,1745367050331,-200.0,0.00046525,30]
[358685436,1745367050341,-150.0,0.00046574,2]
[358685437,1745367050354,-188.57,0.00046575,120]
[358685438,1745367050366,-2000.0,0.00046575,2]
[358685439,1745367050376,-434.69791904,0.00046575,2]
[358685440,1745367050387,-1563.35,0.00046575,120]
[358685441,1745367050398,-500.0,0.00046575,30]
[358685442,1745367050408,-500.0,0.00046575,30]
[358685443,1745367050418,-500.0,0.00046575,30]
[358685444,1745367050430,-500.0,0.00046575,30]
[358685445,1745367050440,-496.67,0.00046575,30]
[358685446,1745367050450,-500.0,0.00046575,2]
[358685447,1745367050460,-550.391,0.00046575,30]
[358685448,1745367050471,-514.64127501,0.00046575,5]
[358685449,1745367050480,-150.0,0.00046599,7]
[358685450,1745367050490,-150.0,0.000466,7]
[358685451,1745367050499,-150.0,0.00046607,7]
[358685452,1745367050509,-150.0,0.00046612,7]
[358685453,1745367050519,-150.0,0.00046616,7]
[358685454,1745367050529,-150.0,0.0004668,7]
[358685455,1745367050539,-500.0,0.00046699,30]
[358685456,1745367050549,-3069.83869,0.000467,120]
[358685457,1745367050560,-70377.7048595,0.000467,30]
[358685458,1745367050569,-200.0,0.000467,68]
[358685459,1745367050579,-299350.0,0.000467,30]
[358685460,1745367050588,-165.868539,0.000467,14]
[358685461,1745367050598,-151.0,0.000467,14]
[358685462,1745367050616,-206.080809,0.000467,14]
[358685463,1745367050627,-154.160517,0.000467,14]
[358685464,1745367050638,-151.0,0.000467,14]
[358685465,1745367050648,-151.0,0.000467,14]
[358685466,1745367050658,-182.670188,0.000467,14]
[358685467,1745367050668,-182.670188,0.000467,14]
[358685468,1745367050679,-879.738469,0.000467,14]
[358685469,1745367050689,-879.738469,0.000467,14]
[358685470,1745367050700,-314.650086,0.000467,14]
[358685471,1745367050711,-314.650086,0.000467,14]
[358685472,1745367050721,-1000.0,0.00046705,2]
[358685473,1745367050730,-200.0,0.00046705,30]
[358685474,1745367050740,-3280.00782637,0.00046705,30]
[358685475,1745367050749,-151.0,0.00046708,14]
[358685476,1745367050758,-151.0,0.00046708,14]
[358685477,1745367050767,-30005.1049809,0.00046724,2]
[358685478,1745367050778,-151.0,0.00046736,14]
[358685479,1745367050788,-151.0,0.00046736,14]
[358685480,1745367050799,-151.0,0.00046736,14]
[358685481,1745367050809,-151.0,0.00046736,14]
[358685482,1745367050818,-178.60976,0.00046736,14]
[358685483,1745367050827,-151.0,0.00046736,14]
[358685484,1745367050836,-189.604665,0.00046736,14]
[358685485,1745367050846,-151.0,0.00046736,14]
[358685486,1745367050855,-151.0,0.00046736,14]
[358685487,1745367050864,-151.0,0.00046736,14]
[358685488,1745367050875,-300.54,0.00046736,30]
[358685489,1745367050884,-151.0,0.00046741,14]
[358685490,1745367050893,-500.0,0.00046755,30]
[358685491,1745367050902,-730.68109432,0.00046755,30]
[358685492,1745367050912,-123799.87864303,0.00046756,2]
[358685493,1745367050922,-12189.56352851,0.00046756,20]
[358685494,1745367050931,-154298.7902965,0.00046756,10]
[358685495,1745367050940,-2009.39407178,0.00046756,2]
[358685496,1745367050949,-4861.22604972,0.00046756,2]
[358685497,1745367050958,-191176.04092479,0.00046756,2]
[358685498,1745367050967,-1932.53777244,0.00046756,7]
[358685499,1745367050978,-500.0,0.00046756,8]
[358685500,1745367050988,-500.0,0.00046756,8]
[358685501,1745367050998,-500.0,0.00046756,8]
[358685502,1745367051009,-500.0,0.00046756,8]
[358685503,1745367051018,-500.0,0.00046756,8]
[358685504,1745367051027,-500.0,0.00046756,8]
[358685505,1745367051036,-500.0,0.00046756,8]
[358685506,1745367051047,-500.0,0.00046756,8]
[358685507,1745367051059,-500.0,0.00046756,8]
[358685508,1745367051070,-500.0,0.00046756,8]
[358685509,1745367051080,-500.0,0.00046756,8]
[358685510,1745367051089,-500.0,0.00046756,8]
[358685511,1745367051099,-500.0,0.00046756,8]
[358685512,1745367051108,-413.08541081,0.00046756,8]
[358685513,1745367051119,-500.0,0.00046756,2]
[358685514,1745367051129,-185.64613362,0.00046756,30]
[358685515,1745367051138,-152.758649,0.00046758,14]
[358685516,1745367051148,-151.0,0.00046758,14]
[358685517,1745367051157,-151.0,0.00046758,14]
[358685518,1745367051166,-151.0,0.00046758,14]
[358685519,1745367051177,-151.0,0.00046758,14]
[358685520,1745367051186,-151.0,0.00046759,14]
[358685521,1745367051196,-158.0,0.00046759,30]
[358685522,1745367051205,-258.47009912,0.00046759,30]
[358685523,1745367051215,-761.0,0.000468,30]
[358685524,1745367051225,-1516.66,0.00046817,2]
[358685525,1745367051234,-500.0,0.0004682,120]
[358685526,1745367051243,-2000.0,0.0004682,120]
[358685527,1745367051252,-500.0,0.0004682,120]
[358685528,1745367051262,-500.0,0.0004682,120]
[358685529,1745367051272,-200.0,0.0004682,120]
[358685530,1745367051282,-500.0,0.00046849,2]
[358685531,1745367051291,-650.0,0.00046849,90]
[358685532,1745367051302,-2008.0781,0.00046908,3]
[358685533,1745367051311,-2000.0,0.00046908,3]
[358685534,1745367051320,-710.863915,0.00046986,14]
[358685535,1745367051329,-710.863915,0.00046986,14]
[358685536,1745367051340,-500.0,0.00046986,120]
[358685537,1745367051350,-500.0,0.00046986,120]
[358685538,1745367051360,-277.31676617,0.00046986,120]
[358685539,1745367051371,-500.0,0.00046986,120]
[358685540,1745367051383,-500.0,0.00046986,120]
[358685541,1745367051394,-500.0,0.00046986,120]
[358685542,1745367051405,-500.0,0.00046986,120]
[358685543,1745367051416,-500.0,0.00046986,120]
[358685544,1745367051426,-500.0,0.00046986,120]
[358685545,1745367051437,-500.0,0.00046986,120]
[358685546,1745367051447,-500.0,0.00046986,120]
[358685547,1745367051457,-500.0,0.00046986,120]
[358685548,1745367051467,-500.0,0.00046986,120]
[358685549,1745367051477,-500.0,0.00046986,120]
[358685550,1745367051487,-500.0,0.00046986,120]
[358685551,1745367051497,-500.0,0.00046986,120]
[358685552,1745367051506,-500.0,0.00046986,120]
[358685553,1745367051516,-447.07245438,0.00046986,120]
[358685554,1745367051526,-500.0,0.00046986,120]
[358685555,1745367051537,-400.0,0.00046986,120]
[358685556,1745367051547,-5000.0,0.00047,5]
[358685557,1745367051558,-14333.63538616,0.00047,2]
[358685558,1745367051568,-151.0,0.00047,14]
[358685559,1745367051578,-151.0,0.00047,14]
[358685560,1745367051588,-151.0,0.00047,14]
[358685561,1745367051597,-151.0,0.00047,14]
[358685562,1745367051607,-900.0,0.00047,2]
[358685563,1745367051616,-650.0,0.00047,90]
[358685564,1745367051625,-150.0,0.00047019,120]
[358685565,1745367051635,-215.0,0.0004703,2]
[358685566,1745367051644,-200.0,0.000471,69]
[358685567,1745367051654,-166.22,0.000471,60]
[358685568,1745367051664,-500.0,0.00047123,2]
[358685569,1745367051673,-650.0,0.00047123,90]
[358685570,1745367051682,-234.03710168,0.00047144,2]
[358685571,1745367051692,-215.26448061,0.00047144,2]
[358685572,1745367051701,-500.0,0.0004715,30]
[358685573,1745367051711,-1311.08,0.000473,14]
[358685574,1745367051720,-151.0,0.000473,2]
[358685575,1745367051730,-500.0,0.00047397,2]
[358685576,1745367051740,-650.0,0.00047397,90]
[358685577,1745367051750,-27942.81229731,0.000474,2]
[358685578,1745367051760,-151.0,0.000474,14]
[358685579,1745367051769,-151.0,0.000474,14]
[358685580,1745367051779,-151.0,0.000474,14]
[358685581,1745367051789,-8639.92047843,0.00047444,2]
[358685582,1745367051800,-690.46781375,0.000475,120]
[358685583,1745367051810,-1509.71,0.000476,2]
[358685584,1745367051820,-500.0,0.00047671,2]
[358685585,1745367051829,-650.0,0.00047671,90]
[358685586,1745367051839,-200.0,0.000477,72]
[358685587,1745367051848,-2000.0,0.000477,2]
[358685588,1745367051858,-876.0,0.00047733,2]
[358685589,1745367051868,-3461.95507342,0.000478,2]
[358685590,1745367051878,-245.21,0.000478,42]
[358685591,1745367051888,-245.21,0.000478,42]
[358685592,1745367051898,-245.21,0.000478,42]
[358685593,1745367051908,-245.21,0.000478,42]
[358685594,1745367051918,-245.21,0.000478,42]
[358685595,1745367051928,-245.21,0.000478,42]
[358685596,1745367051939,-245.21,0.000478,42]
[358685597,1745367051949,-245.21,0.000478,42]
[358685598,1745367051959,-245.21,0.000478,42]
[358685599,1745367051969,-245.21,0.000478,42]
[358685600,1745367051978,-245.21,0.000478,42]
[358685601,1745367051988,-245.21,0.000478,42]
[358685602,1745367051998,-200.0,0.00047895,30]
[358685603,1745367052007,-689.24761137,0.000479,30]
[358685604,1745367052018,-188.57,0.00047945,120]
[358685605,1745367052027,-1563.35,0.00047945,120]
[358685606,1745367052036,-500.0,0.00047945,2]
[358685607,1745367052047,-650.0,0.00047945,90]
[358685608,1745367052058,-881.58532605,0.00048,120]
[358685609,1745367052070,-167.383488,0.0004805,60]
[358685610,1745367052080,-798.04,0.0004806,30]
[358685611,1745367052091,-454.03,0.0004806,30]
[358685612,1745367052101,-798.04,0.0004806,30]
[358685613,1745367052111,-454.03,0.0004806,30]
[358685614,1745367052124,-454.03,0.0004806,30]
[358685615,1745367052136,-798.04,0.0004806,30]
[358685616,1745367052147,-454.03,0.0004806,30]
[358685617,1745367052157,-798.04,0.0004806,30]
[358685618,1745367052166,-798.04,0.0004806,30]
[358685619,1745367052178,-454.03,0.0004806,30]
[358685620,1745367052188,-200.0,0.000481,73]
[358685621,1745367052198,-166.22,0.000481,60]
[358685622,1745367052208,-500.0,0.00048219,2]
[358685623,1745367052218,-396.76966434,0.00048274,30]
[358685624,1745367052228,-1311.08,0.000483,14]
[358685625,1745367052238,-215.0,0.0004832,2]
[358685626,1745367052250,-211.0,0.0004832,2]
[358685627,1745367052260,-155.10302643,0.0004835,2]
[358685628,1745367052269,-1419.15,0.000484,2]
[358685629,1745367052280,-396.76966434,0.00048466,30]
[358685630,1745367052291,-699.62,0.00048473,30]
[358685631,1745367052304,-500.0,0.00048493,2]
[358685632,1745367052314,-221.0,0.00048493,120]
[358685633,1745367052324,-150.0,0.00048624,120]